fUSD/lending_fUSD_20260127
["ID","MTS","AMOUNT","RATE_DAILY","PERIOD"]
[403808667,1769548238884,-1869.0,0.00015838,2]
[403808669,1769548238894,-18879.02303468,0.00015848,2]
[403808671,1769548238904,-1171.0,0.00015864,2]
[403808673,1769548238914,-237.0,0.00015869,2]
[403808675,1769548238923,-1024.0,0.00015895,2]
[403808677,1769548238935,-900.0,0.000159,5]
[403808679,1769548238944,-1526.0,0.000159,2]
[403808681,1769548238954,-500.0,0.00015917,2]
[403808683,1769548238964,-1025.0,0.00015927,2]
[403808684,1769548238974,-818.0,0.00015959,2]
[403808687,1769548238984,-500.0,0.00015983,2]
[403808689,1769548238994,-1128.45,0.00015983,2]
[403808690,1769548239007,-416.0,0.00016,2]
[403808692,1769548239017,-1188.4,0.00016013,2]
[403808694,1769548239027,-1493.98,0.00016154,2]
[403808695,1769548239037,-384.45580405,0.00016191,2]
[403808696,1769548239046,-150.0,0.00016219,2]
[403808697,1769548239055,-3240.0,0.00016225,2]
[403808698,1769548239064,-578.20924308,0.00016242,2]
[403808699,1769548239074,-174.61919141,0.00016242,2]
[403808700,1769548239083,-322.6107,0.00016242,2]
[403808701,1769548239096,-209.40437684,0.00016242,2]
[403808702,1769548239110,-1128.45,0.00016257,2]
[403808703,1769548239119,-217.15233878,0.00016297,2]
[403808704,1769548239128,-150.0,0.00016301,2]
[403808705,1769548239138,-500.0,0.00016301,2]
[403808706,1769548239149,-150.0,0.00016301,2]
[403808707,1769548239159,-500.0,0.00016301,2]
[403808708,1769548239168,-500.0,0.00016301,2]
[403808709,1769548239181,-500.0,0.00016301,2]
[403808710,1769548239192,-150.0,0.00016301,2]
[403808711,1769548239201,-213.19994559,0.00016301,2]
[403808712,1769548239215,-500.0,0.00016301,2]
[403808713,1769548239226,-150.0,0.00016301,2]
[403808714,1769548239235,-150.0,0.00016301,2]
[403808715,1769548239246,-150.0,0.00016301,2]
[403808716,1769548239256,-150.0,0.00016301,2]
[403808717,1769548239266,-500.0,0.00016301,2]
[403808718,1769548239276,-150.0,0.00016301,2]
[403808719,1769548239286,-150.0,0.00016301,2]
[403808720,1769548239295,-500.0,0.00016301,2]
[403808721,1769548239305,-500.0,0.00016301,2]
[403808722,1769548239315,-500.0,0.00016301,2]
[403808723,1769548239324,-500.0,0.00016301,2]
[403808724,1769548239334,-500.0,0.00016301,2]
[403808725,1769548239343,-150.0,0.00016301,2]
[403808726,1769548239353,-500.0,0.00016301,2]
[403808727,1769548239363,-150.0,0.00016301,2]
[403808728,1769548239373,-500.0,0.00016301,2]
[403808729,1769548239383,-500.0,0.00016301,2]
[403808730,1769548239392,-455.0,0.00016301,2]
[403808731,1769548239401,-500.0,0.00016301,2]
[403808732,1769548239411,-150.0,0.00016301,2]
[403808733,1769548239420,-625.0,0.00016301,2]
[403808734,1769548239431,-500.0,0.00016301,2]
[403808735,1769548239443,-500.0,0.00016301,2]
[403808736,1769548239452,-354.7,0.00016329,2]
[403808737,1769548239461,-225.18697532,0.00016352,2]
[403808738,1769548239471,-150.0,0.00016356,2]
[403808739,1769548239480,-500.0,0.00016356,2]
[403808740,1769548239489,-150.0,0.00016356,2]
[403808741,1769548239498,-500.0,0.00016356,2]
[403808742,1769548239508,-500.0,0.00016356,2]
[403808743,1769548239517,-500.0,0.00016356,2]
[403808744,1769548239527,-150.19824857,0.00016356,2]
[403808745,1769548239536,-500.0,0.00016356,2]
[403808746,1769548239545,-150.93589511,0.00016356,2]
[403808747,1769548239554,-150.0,0.00016356,2]
[403808748,1769548239563,-93.9850094,0.00016356,2]
[403808754,1769548240130,-56.0149906,0.00016356,2]
[403808756,1769548240139,-150.0,0.00016356,2]
[403808758,1769548240150,-568.740597,0.00016356,2]
[403808760,1769548240159,-150.72666593,0.00016356,2]
[403808762,1769548240168,-155.71044254,0.00016356,2]
[403808764,1769548240177,-500.0,0.00016356,2]
[403808766,1769548240187,-500.0,0.00016356,2]
[403808768,1769548240196,-500.0,0.00016356,2]
[403808770,1769548240206,-500.0,0.00016356,2]
[403808772,1769548240215,-500.0,0.00016356,2]
[403808774,1769548240225,-500.0,0.00016356,2]
[403808776,1769548240234,-500.0,0.00016356,2]
[403808778,1769548240243,-500.0,0.00016356,2]
[403808780,1769548240252,-455.0,0.00016356,2]
[403808782,1769548240261,-500.0,0.00016356,2]
[403808784,1769548240270,-150.0,0.00016356,2]
[403808785,1769548240279,-625.0,0.00016356,2]
[403808786,1769548240287,-500.0,0.00016356,2]
[403808787,1769548240297,-217.113082,0.00016373,2]
[403808788,1769548240306,-500.81908934,0.00016373,2]
[403808789,1769548240316,-504.6451351,0.00016373,2]
[403808790,1769548240325,-500.0,0.00016373,2]
[403808791,1769548240334,-500.0,0.00016373,2]
[403808792,1769548240343,-500.0,0.00016373,2]
[403808793,1769548240352,-1619.31761174,0.00016384,2]
[403808794,1769548240361,-233.51889341,0.00016407,2]
[403808795,1769548240371,-150.0,0.00016411,2]
[403808796,1769548240380,-464.95074309,0.00016411,2]
[403808797,1769548240389,-150.0,0.00016411,2]
[403808798,1769548240404,-500.0,0.00016411,2]
[403808799,1769548240413,-500.0,0.00016411,2]
[403808800,1769548240422,-376.24205671,0.00016411,2]
[403808801,1769548240432,-500.0,0.00016411,2]
[403808802,1769548240442,-150.0,0.00016411,2]
[403808803,1769548240451,-151.00522339,0.00016411,2]
[403808804,1769548240460,-500.0,0.00016411,2]
[403808805,1769548240469,-500.0,0.00016411,2]
[403808806,1769548240478,-500.0,0.00016411,2]
[403808807,1769548240488,-500.0,0.00016411,2]
[403808808,1769548240497,-389.95389498,0.00016411,2]
[403808809,1769548240512,-110.04610502,0.00016411,2]
[403808810,1769548240522,-500.0,0.00016411,2]
[403808811,1769548240531,-500.0,0.00016411,2]
[403808812,1769548240540,-10.38679625,0.00016411,2]
[403808813,1769548240551,-489.61320375,0.00016411,2]
[403808814,1769548240560,-455.0,0.00016411,2]
[403808816,1769548240569,-500.0,0.00016411,2]
[403808818,1769548240577,-150.0,0.00016411,2]
[403808820,1769548240586,-195.39331527,0.00016411,2]
[403808823,1769548240597,-429.60668473,0.00016411,2]
[403808826,1769548240605,-500.0,0.00016411,2]
[403808829,1769548240615,-653.88092779,0.00016428,2]
[403808831,1769548240623,-500.0,0.00016438,2]
[403808834,1769548240633,-500.0,0.00016438,2]
[403808837,1769548240641,-500.0,0.00016438,2]
[403808840,1769548240650,-500.0,0.00016438,2]
[403808843,1769548240659,-358.07323626,0.00016438,2]
[403808845,1769548240668,-549.22554721,0.00016438,2]
[403808847,1769548240676,-2329.2,0.00016438,2]
[403808848,1769548240685,-1805.81360403,0.00016438,2]
[403808851,1769548240697,-523.38639597,0.00016438,2]
[403808853,1769548240705,-387.97228031,0.00016438,2]
[403808879,1769548240937,-391.66,0.00016106,2]
[403808880,1769548240947,-1941.22771969,0.00016438,2]
[403808881,1769548240957,-2329.2,0.00016438,2]
[403808882,1769548240966,-2329.2,0.00016438,2]
[403808883,1769548240975,-2329.2,0.00016438,2]
[403808884,1769548240985,-2329.2,0.00016438,2]
[403808885,1769548240994,-2329.2,0.00016438,2]
[403808886,1769548241003,-2329.2,0.00016438,2]
[403808887,1769548241012,-2329.2,0.00016438,2]
[403808888,1769548241021,-2329.2,0.00016438,2]
[403808889,1769548241030,-2329.2,0.00016438,2]
[403808890,1769548241039,-2329.2,0.00016438,2]
[403808891,1769548241048,-2329.2,0.00016438,2]
[403808892,1769548241058,-2329.2,0.00016438,2]
[403808893,1769548241067,-2329.2,0.00016438,2]
[403808894,1769548241076,-2329.2,0.00016438,2]
[403808895,1769548241085,-2329.2,0.00016438,2]
[403808896,1769548241094,-2329.2,0.00016438,2]
[403808897,1769548241103,-2329.2,0.00016438,2]
[403808898,1769548241112,-2329.2,0.00016438,2]
[403808899,1769548241124,-2329.2,0.00016438,2]
[403808900,1769548241133,-2329.2,0.00016438,2]
[403808901,1769548241142,-2329.41520173,0.00016438,2]
[403808902,1769548241151,-542.13465711,0.00016438,2]
[403808903,1769548241161,-500.0,0.00016438,2]
[403808904,1769548241173,-575.71176963,0.00016438,2]
[403808905,1769548241182,-500.0,0.00016438,2]
[403808906,1769548241195,-500.0,0.00016438,2]
[403808907,1769548241204,-500.0,0.00016438,2]
[403808908,1769548241214,-500.0,0.00016438,2]
[403808909,1769548241223,-500.0,0.00016438,2]
[403808910,1769548241232,-500.0,0.00016438,2]
[403808911,1769548241240,-500.0,0.00016438,2]
[403808912,1769548241250,-500.0,0.00016438,2]
[403808913,1769548241259,-500.0,0.00016438,2]
[403808914,1769548241268,-450.0,0.00016438,2]
[403808915,1769548241277,-500.0,0.00016438,2]
[403808916,1769548241287,-500.0,0.00016438,2]
[403808917,1769548241296,-500.0,0.00016438,2]
[403808918,1769548241305,-500.0,0.00016438,2]
[403808919,1769548241314,-500.0,0.00016438,2]
[403808920,1769548241323,-500.0,0.00016438,2]
[403808921,1769548241333,-500.0,0.00016438,2]
[403808922,1769548241342,-500.0,0.00016438,2]
[403808923,1769548241351,-500.0,0.00016438,2]
[403808924,1769548241360,-500.0,0.00016438,2]
[403808925,1769548241369,-510.0,0.00016441,2]
[403808926,1769548241378,-242.15909246,0.00016462,2]
[403808927,1769548241388,-152.19420035,0.00016465,2]
[403808928,1769548241398,-240.41327915,0.00016465,2]
[403808929,1769548241408,-500.0,0.00016465,2]
[403808930,1769548241417,-500.0,0.00016465,2]
[403808931,1769548241427,-500.0,0.00016465,2]
[403808932,1769548241437,-150.0,0.00016465,2]
[403808933,1769548241446,-500.0,0.00016465,2]
[403808934,1769548241456,-500.0,0.00016465,2]
[403808935,1769548241466,-500.0,0.00016465,2]
[403808936,1769548241479,-500.0,0.00016465,2]
[403808937,1769548241489,-500.0,0.00016465,2]
[403808938,1769548241498,-500.0,0.00016465,2]
[403808939,1769548241507,-500.0,0.00016465,2]
[403808940,1769548241516,-500.0,0.00016465,2]
[403808941,1769548241526,-455.0,0.00016465,2]
[403808942,1769548241535,-500.0,0.00016465,2]
[403808943,1769548241544,-190.96088901,0.00016465,2]
[403808944,1769548241553,-625.0,0.00016465,2]
[403808945,1769548241563,-500.0,0.00016465,2]
[403808946,1769548241571,-500.0,0.00016493,2]
[403808947,1769548241580,-251.11897888,0.00016517,2]
[403808948,1769548241589,-500.0,0.0001652,2]
[403808949,1769548241598,-500.0,0.0001652,2]
[403808950,1769548241607,-150.0,0.0001652,2]
[403808951,1769548241616,-150.0,0.0001652,2]
[403808952,1769548241625,-500.0,0.0001652,2]
[403808953,1769548241634,-465.49389154,0.0001652,2]
[403808954,1769548241643,-500.0,0.0001652,2]
[403808955,1769548241654,-312.71056971,0.0001652,2]
[403808956,1769548241662,-500.0,0.0001652,2]
[403808957,1769548241671,-500.0,0.0001652,2]
[403808958,1769548241679,-500.0,0.0001652,2]
[403808959,1769548241689,-500.0,0.0001652,2]
[403808960,1769548241699,-455.0,0.0001652,2]
[403808961,1769548241707,-500.0,0.0001652,2]
[403808962,1769548241718,-625.0,0.0001652,2]
[403808963,1769548241727,-500.0,0.0001652,2]
[403808964,1769548241736,-1128.45,0.00016531,2]
[403808965,1769548241745,-500.0,0.00016548,2]
[403808966,1769548241754,-260.4103811,0.00016572,2]
[403808967,1769548241767,-500.0,0.00016575,2]
[403808968,1769548241776,-500.0,0.00016575,2]
[403808969,1769548241785,-500.0,0.00016575,2]
[403808970,1769548241794,-500.0,0.00016575,2]
[403808971,1769548241803,-500.0,0.00016575,2]
[403808972,1769548241812,-500.0,0.00016575,2]
[403808973,1769548241821,-500.0,0.00016575,2]
[403808974,1769548241831,-500.0,0.00016575,2]
[403808975,1769548241841,-455.0,0.00016575,2]
[403808976,1769548241850,-500.0,0.00016575,2]
[403808977,1769548241860,-625.0,0.00016575,2]
[403808978,1769548241869,-500.0,0.00016575,2]
[403808979,1769548241878,-161.04189307,0.00016577,2]
[403808980,1769548241887,-500.0,0.00016602,2]
[403808981,1769548241896,-270.0455652,0.00016627,2]
[403808982,1769548241905,-500.0,0.0001663,2]
[403808983,1769548241915,-500.0,0.0001663,2]
[403808984,1769548241925,-500.0,0.0001663,2]
[403808985,1769548241934,-500.0,0.0001663,2]
[403808986,1769548241946,-500.0,0.0001663,2]
[403808987,1769548241955,-500.0,0.0001663,2]
[403808988,1769548241965,-500.0,0.0001663,2]
[403808989,1769548241974,-455.0,0.0001663,2]
[403808990,1769548241983,-500.0,0.0001663,2]
[403808991,1769548241992,-625.0,0.0001663,2]
[403808992,1769548242001,-500.0,0.0001663,2]
[403808993,1769548242011,-500.0,0.00016657,2]
[403808994,1769548242020,-280.03725112,0.00016682,2]
[403808995,1769548242030,-500.0,0.00016685,2]
[403808996,1769548242039,-500.0,0.00016685,2]
[403808997,1769548242049,-500.0,0.00016685,2]
[403808998,1769548242059,-500.0,0.00016685,2]
[403808999,1769548242068,-500.0,0.00016685,2]
[403809000,1769548242079,-500.0,0.00016685,2]
[403809001,1769548242090,-500.0,0.00016685,2]
[403809002,1769548242100,-455.0,0.00016685,2]
[403809003,1769548242112,-511.21504498,0.00016685,2]
[403809004,1769548242123,-625.0,0.00016685,2]
[403809005,1769548242133,-399.05102027,0.00016685,2]
[403809006,1769548242143,-500.0,0.00016712,2]
[403809007,1769548242152,-2679.99,0.00016723,2]
[403809008,1769548242162,-290.39862941,0.00016737,2]
[403809009,1769548242172,-500.0,0.00016739,2]
[403809010,1769548242181,-500.0,0.00016739,2]
[403809011,1769548242192,-500.0,0.00016739,2]
[403809012,1769548242201,-500.0,0.00016739,2]
[403809013,1769548242210,-500.0,0.00016739,2]
[403809014,1769548242219,-500.0,0.00016739,2]
[403809015,1769548242229,-500.0,0.00016739,2]
[403809016,1769548242241,-455.0,0.00016739,2]
[403809017,1769548242250,-625.0,0.00016739,2]
[403809018,1769548242260,-500.0,0.00016767,2]
[403809019,1769548242271,-600.0,0.00016781,2]
[403809020,1769548242281,-318.65887992,0.0001679,2]
[403809021,1769548242291,-301.1433787,0.00016792,2]
[403809022,1769548242301,-500.0,0.00016794,2]
[403809023,1769548242311,-500.0,0.00016794,2]
[403809024,1769548242320,-500.0,0.00016794,2]
[403809025,1769548242330,-500.0,0.00016794,2]
[403809026,1769548242339,-500.0,0.00016794,2]
[403809027,1769548242349,-500.0,0.00016794,2]
[403809028,1769548242359,-500.0,0.00016794,2]
[403809029,1769548242368,-455.0,0.00016794,2]
[403809030,1769548242377,-625.0,0.00016794,2]
[403809031,1769548242386,-1128.45,0.00016805,2]
[403809032,1769548242397,-500.0,0.00016822,2]
[403809033,1769548242407,-1203.05315815,0.00016847,2]
[403809034,1769548242418,-1680.0,0.00016848,2]
[403809035,1769548242430,-500.0,0.00016849,2]
[403809036,1769548242442,-500.0,0.00016849,2]
[403809037,1769548242453,-500.0,0.00016849,2]
[403809038,1769548242465,-500.0,0.00016849,2]
[403809039,1769548242476,-500.0,0.00016849,2]
[403809040,1769548242486,-500.0,0.00016849,2]
[403809041,1769548242496,-500.0,0.00016849,2]
[403809042,1769548242506,-455.0,0.00016849,2]
[403809043,1769548242516,-625.0,0.00016849,2]
[403809044,1769548242527,-239.77721828,0.00016854,2]
[403809045,1769548242536,-500.0,0.00016876,2]
[403809046,1769548242547,-250.0,0.00016889,2]
[403809047,1769548242559,-664.31906978,0.00016889,2]
[403809048,1769548242572,-195.0,0.00016889,2]
[403809049,1769548242583,-5000.0,0.00016891,2]
[403809050,1769548242594,-200.0,0.00016891,2]
[403809051,1769548242606,-193.0,0.00016891,2]
[403809052,1769548242617,-300.0,0.00016891,2]
[403809053,1769548242628,-2500.0,0.00016891,2]
[403809054,1769548242638,-600.0,0.00016891,2]
[403809055,1769548242650,-300.0,0.00016891,2]
[403809056,1769548242660,-150.00177885,0.00016903,2]
[403809057,1769548242671,-500.0,0.00016904,2]
[403809058,1769548242681,-500.0,0.00016904,2]
[403809059,1769548242695,-500.0,0.00016904,2]
[403809060,1769548242705,-500.0,0.00016904,2]
[403809061,1769548242716,-500.0,0.00016904,2]
[403809062,1769548242726,-500.0,0.00016904,2]
[403809063,1769548242737,-500.0,0.00016904,2]
[403809064,1769548242747,-455.0,0.00016904,2]
[403809065,1769548242757,-625.0,0.00016904,2]
[403809066,1769548242768,-300.0,0.00016918,2]
[403809067,1769548242777,-250.0,0.00016918,2]
[403809068,1769548242787,-195.0,0.00016918,2]
[403809069,1769548242797,-500.0,0.00016921,2]
[403809070,1769548242807,-1061.30412969,0.00016921,2]
[403809071,1769548242819,-1000.0,0.00016921,2]
[403809072,1769548242830,-500.0,0.00016931,2]
[403809073,1769548242840,-500.0,0.00016959,2]
[403809074,1769548242851,-363.51122534,0.00016959,2]
[403809075,1769548242862,-500.0,0.00016959,2]
[403809076,1769548242873,-500.0,0.00016959,2]
[403809077,1769548242886,-500.0,0.00016959,2]
[403809078,1769548242898,-500.0,0.00016959,2]
[403809079,1769548242911,-500.0,0.00016959,2]
[403809080,1769548242923,-455.0,0.00016959,2]
[403809081,1769548242935,-625.0,0.00016959,2]
[403809082,1769548242947,-500.0,0.00016986,2]
[403809083,1769548242959,-250.0,0.00017,2]
[403809084,1769548242970,-500.0,0.00017013,2]
[403809085,1769548242981,-500.0,0.00017013,2]
[403809086,1769548242992,-500.0,0.00017013,2]
[403809087,1769548243003,-500.0,0.00017013,2]
[403809088,1769548243016,-500.0,0.00017013,2]
[403809089,1769548243027,-381.51596019,0.00017013,2]
[403809090,1769548243038,-455.0,0.00017013,2]
[403809091,1769548243049,-625.0,0.00017013,2]
[403809092,1769548243060,-500.0,0.00017041,2]
[403809093,1769548243072,-482.8923735,0.00017068,2]
[403809094,1769548243083,-500.0,0.00017068,2]
[403809095,1769548243094,-500.0,0.00017068,2]
[403809096,1769548243107,-264.68185966,0.00017068,2]
[403809097,1769548243119,-500.0,0.00017068,2]
[403809098,1769548243129,-455.0,0.00017068,2]
[403809099,1769548243140,-625.0,0.00017068,2]
[403809100,1769548243150,-1128.45,0.00017079,2]
[403809101,1769548243162,-500.0,0.00017096,2]
[403809102,1769548243172,-500.0,0.00017123,2]
[403809103,1769548243183,-500.0,0.00017123,2]
[403809104,1769548243195,-247.51653588,0.00017123,2]
[403809105,1769548243206,-455.0,0.00017123,2]
[403809106,1769548243216,-625.0,0.00017123,2]
[403809107,1769548243227,-593.13448031,0.0001715,2]
[403809108,1769548243240,-264.80316172,0.00017178,2]
[403809109,1769548243250,-500.0,0.00017178,2]
[403809110,1769548243261,-455.0,0.00017178,2]
[403809111,1769548243274,-625.0,0.00017178,2]
[403809112,1769548243284,-301.92574143,0.00017233,2]
[403809113,1769548243295,-455.0,0.00017233,2]
[403809114,1769548243306,-625.0,0.00017233,2]
[403809115,1769548243317,-455.0,0.00017287,2]
[403809116,1769548243328,-625.0,0.00017287,2]
[403809117,1769548243338,-455.0,0.00017342,2]
[403809118,1769548243349,-625.0,0.00017342,2]
[403809119,1769548243359,-500.0,0.00017342,2]
[403809120,1769548243370,-1128.45,0.00017353,2]
[403809121,1769548243381,-455.0,0.00017397,2]
[403809122,1769548243391,-625.0,0.00017397,2]
[403809123,1769548243401,-455.0,0.00017452,2]
[403809124,1769548243412,-625.0,0.00017452,2]
[403809125,1769548243423,-187.78066829,0.00017468,2]
[403809126,1769548243433,-380.0,0.00017469,2]
[403809127,1769548243444,-288.33164901,0.00017478,2]
[403809128,1769548243456,-455.0,0.00017506,2]
[403809129,1769548243467,-625.0,0.00017506,2]
[403809130,1769548243478,-464.69115399,0.00017561,2]
[403809131,1769548243490,-639.84715226,0.00017561,2]
[403809132,1769548243502,-380.0,0.00017578,2]
[403809144,1769548244490,-385.00957322,0.00017611,2]
[403809145,1769548244513,-1128.45,0.00017627,2]
[403809146,1769548244546,-866.0,0.00017636,2]
[403809147,1769548244556,-877.9814799,0.0001764,2]
[403809148,1769548244565,-380.0,0.00017656,2]
[403809149,1769548244574,-380.0,0.00017715,2]
[403809150,1769548244584,-380.0,0.00017722,2]
[403809151,1769548244593,-380.0,0.00017723,2]
[403809152,1769548244603,-380.0,0.0001778,2]
[403809153,1769548244613,-1400.0,0.000178,6]
[403809154,1769548244624,-500.0,0.00017808,2]
[403809155,1769548244634,-151.0,0.00017844,2]
[403809156,1769548244644,-3174.87631851,0.00017847,2]
[403809157,1769548244655,-5600.85815596,0.00017847,2]
[403809158,1769548244665,-500.0,0.00017863,2]
[403809159,1769548244675,-161.04189307,0.00017899,2]
[403809160,1769548244684,-10000.0,0.000179,2]
[403809161,1769548244694,-1800.0,0.000179,6]
[403809162,1769548244703,-195.58150189,0.000179,3]
[403809164,1769548244712,-4780.77157911,0.000179,2]
[403809165,1769548244721,-10085.0,0.000179,2]
[403809167,1769548244731,-1128.45,0.00017901,2]
[403809169,1769548244740,-375.19870368,0.00017918,2]
[403809172,1769548244749,-290.0,0.00017963,2]
[403809173,1769548244759,-164.968212,0.0001797,2]
[403809175,1769548244769,-500.0,0.00017972,2]
[403809178,1769548244779,-653.88092779,0.0001799,2]
[403809179,1769548244788,-370.3227898,0.00017995,2]
[403809182,1769548244799,-151.0,0.00017997,2]
[403809183,1769548244809,-276.98573316,0.00017997,2]
[403809186,1769548244819,-150.0,0.00017999,2]
[403809187,1769548244829,-150.0,0.00017999,2]
[403809190,1769548244839,-150.0,0.00017999,2]
[403809191,1769548244848,-150.0,0.00017999,2]
[403809193,1769548244857,-157.25260051,0.00017999,2]
[403809195,1769548244867,-500.0,0.00017999,2]
[403809197,1769548244876,-212.45,0.00017999,2]
[403809200,1769548244892,-1904.5663724,0.00017999,2]
[403809203,1769548244907,-6969.7143513,0.00017999,2]
[403809205,1769548244917,-212.03488072,0.00018,2]
[403809207,1769548244927,-1315040.37186964,0.00018,2]
[403809210,1769548244938,-35929.49812932,0.00018,2]
[403809213,1769548244949,-5684.7064599,0.00018,2]
[403809217,1769548244959,-894379.77726659,0.00018,2]
[403809220,1769548244968,-151.0,0.00018,2]
[403809223,1769548244979,-151.0,0.00018,2]
[403809226,1769548244988,-151.0,0.00018,2]
[403809228,1769548244998,-979.0687394,0.00018,2]
[403809230,1769548245007,-151.0,0.00018,2]
[403809232,1769548245017,-151.0,0.00018,2]
[403809234,1769548245026,-151.0,0.00018,2]
[403809236,1769548245036,-151.0,0.00018,2]
[403809238,1769548245046,-151.0,0.00018,2]
[403809240,1769548245055,-151.0,0.00018,2]
[403809242,1769548245066,-151.0,0.00018,2]
[403809244,1769548245075,-171.8779803,0.00018,2]
[403809246,1769548245084,-151.0,0.00018,2]
[403809248,1769548245093,-566.334825,0.00018,2]
[403809250,1769548245104,-566.334825,0.00018,2]
[403809252,1769548245117,-566.334825,0.00018,2]
[403809254,1769548245126,-566.334825,0.00018,2]
[403809256,1769548245136,-519.0,0.00018,2]
[403809258,1769548245148,-167.636781,0.00018,2]
[403809260,1769548245157,-167.636781,0.00018,2]
[403809262,1769548245167,-167.636781,0.00018,2]
[403809264,1769548245176,-167.636781,0.00018,2]
[403809266,1769548245186,-1188.4,0.00018015,2]
[403809268,1769548245199,-1128.45,0.00018175,2]
[403809270,1769548245208,-150.00177885,0.00018269,3]
[403809272,1769548245217,-1000.0,0.00018284,2]
[403809274,1769548245227,-500.0,0.00018375,2]
[403809276,1769548245236,-1128.54565862,0.00018448,2]
[403809278,1769548245246,-16718.50097319,0.00018461,2]
[403809280,1769548245257,-18144.64122957,0.00018461,2]
[403809282,1769548245267,-2351.0,0.00018527,2]
[403809284,1769548245277,-9999.99,0.00018533,2]
[403809286,1769548245287,-29999.99,0.00018533,2]
[403809288,1769548245297,-1268.07,0.00018533,2]
[403809290,1769548245307,-2300.0,0.000189,6]
[403809292,1769548245316,-1265.0,0.00018923,2]
[403809294,1769548245326,-621.78829552,0.00018981,2]
[403809296,1769548245335,-564.86618726,0.00019,2]
[403809298,1769548245345,-300.0,0.00019,2]
[403809300,1769548245355,-500.0,0.00019178,2]
[403809302,1769548245364,-500.0,0.00019178,2]
[403809304,1769548245374,-500.0,0.00019178,2]
[403809306,1769548245383,-500.0,0.00019178,2]
[403809308,1769548245393,-569.12116106,0.00019178,2]
[403809310,1769548245402,-445.0,0.00019178,4]
[403809312,1769548245412,-151.0,0.00019178,2]
[403809314,1769548245421,-151.0,0.00019178,2]
[403809316,1769548245431,-151.0,0.00019178,2]
[403809318,1769548245440,-204.000725,0.00019239,2]
[403809320,1769548245451,-9999.99,0.00019339,2]
[403809322,1769548245460,-9999.99,0.00019339,2]
[403809325,1769548245470,-56746.54,0.00019339,2]
[403809326,1769548245480,-514.32,0.00019339,2]
[403809329,1769548245490,-150.99,0.00019339,2]
[403809331,1769548245499,-150.99,0.00019339,2]
[403809333,1769548245508,-9999.99,0.00019339,2]
[403809335,1769548245517,-13999.01,0.00019339,2]
[403809337,1769548245527,-857.23,0.00019339,2]
[403809339,1769548245536,-5900.07,0.00019339,2]
[403809341,1769548245545,-427.21,0.00019339,2]
[403809343,1769548245554,-9999.99,0.00019339,2]
[403809345,1769548245564,-9999.99,0.00019339,2]
[403809347,1769548245573,-3825.33,0.00019339,2]
[403809349,1769548245582,-4999.99,0.00019339,2]
[403809351,1769548245591,-60353.39,0.00019339,2]
[403809353,1769548245600,-9999.99,0.00019339,2]
[403809355,1769548245610,-299.99,0.00019339,7]
[403809357,1769548245619,-31531.48,0.00019339,2]
[403809359,1769548245628,-999.99,0.00019339,2]
[403809361,1769548245637,-499.99,0.00019339,2]
[403809363,1769548245646,-532.19050167,0.00019593,2]